Cogmind - Beta 13 *** ADVENTURER MODE // 2024.04.06 @ 14:47:50 Player: scram Result: Destroyed by S-27 Virus with Autogun Performance ------------- Evolutions (3) 1500 Regions Visited (7) 1400 Robots Destroyed (156) 780 Value Destroyed (5058) 5058 Prototype IDs (11) 220 Alien Tech Used (0) 0 Bonus (1112) 1112 TOTAL SCORE: 10070 Bonus ------- High Alert Combat Kills 412 Entered Garrisons 200 Entered DSFs 500 Cogmind --------- Core Integrity 0/700 Matter 270/300 Energy 33/100 System Corruption 2% Temperature Cool (0) Movement Core (250) Ox4 Location -7/DSF Parts ------- > --- POWER (2) -------- (None) > --- PROPULSION (3) --- (None) > --- UTILITY (5) ------ Improved Heat Sink Medium Storage Unit Targeting Computer Armor Integrity Analyzer Weapon Cycler > --- WEAPON (3) ------- Particle Gun > --- INVENTORY (10) --- Armored Treads Medium Storage Unit Targeting Computer Core Analyzer Improved Light Armor Plating Particle Gun Peak State ------------ > --- POWER ------------ Improved Deuterium Engine Improved Deuterium Engine > --- PROPULSION ------- Advanced Treads Advanced Treads Advanced Treads > --- UTILITY ---------- Improved Cooling System Signal Interpreter Targeting Computer Energy Filter Weapon Cycler > --- WEAPON ----------- Plasma Cannon Cooled Particle Cannon Mini Assault Cannon > --- INVENTORY -------- Improved Cooling System Improved Focal Shield Improved Focal Shield Flak Gun Gauss Cannon [Rating: 47] Favorites ----------- Power Improved Ion Engine Engine Improved Ion Engine Power Core Light Nuclear Core Propulsion Aluminum Leg Treads Advanced Treads Leg Aluminum Leg Hover Unit Gravmag System Utility Signal Interpreter Device Improved Cooling System Storage Small Storage Unit Processor Signal Interpreter Hackware Hacking Suite Protection Hardened Light Armor Plating Weapon High-powered Shotgun Energy Gun Medium Laser Energy Cannon Ion Cannon Ballistic Gun High-powered Shotgun Ballistic Cannon Gauss Cannon Launcher Mini Grenade Launcher Special Weapon Remote Datajack Impact Weapon Hammer Build | -11 -10 -9 -8 -7 -7 -7 -7 ------- Run | Yrd Mat Mat Mat Fac Gar Fac DSF Slots Evolved 6 | . . 2 2 2 . . . Power 1 | . . . 1 . . . . Propulsion 1 | . . . . 1 . . . Utility 3 | . . 1 1 1 . . . Weapon 1 | . . 1 . . . . . Parts Attached 132 | 6 12 21 31 50 2 2 8 Power 18 | 1 2 2 3 8 . 1 1 Engine 12 | 1 1 2 2 4 . 1 1 Core 6 | . 1 . 1 4 . . . Reactor . | . . . . . . . . Propulsion 35 | 2 2 2 12 16 . . 1 Treads 10 | . . . . 9 . . 1 Leg 23 | 2 2 2 10 7 . . . Wheel . | . . . . . . . . Hover 2 | . . . 2 . . . . Flight . | . . . . . . . . Utility 39 | 1 5 6 9 11 2 1 4 Device 21 | . 2 3 4 10 1 . 1 Storage 5 | 1 1 . 2 . . . 1 Processor 7 | . 2 1 . 1 . 1 2 Hackware 1 | . . . . . 1 . . Protection 5 | . . 2 3 . . . . Artifact . | . . . . . . . . Weapon 40 | 2 3 11 7 15 . . 2 Energy Gun 8 | 1 2 1 1 2 . . 1 Energy Cannon 9 | . . . 3 5 . . 1 Ballistic Gun 12 | 1 . 6 1 4 . . . Ballistic Cannon 3 | . . . . 3 . . . Launcher 6 | . . 4 2 . . . . Special Weapon 1 | . . . . 1 . . . Impact Weapon 1 | . 1 . . . . . . Slashing Weapon . | . . . . . . . . Piercing Weapon . | . . . . . . . . Special Melee Weapon . | . . . . . . . . Unidentified Prototypes 3 | . . 1 . 2 . . . Parts Lost 27 | . . 1 5 8 . . 13 Power 6 | . . . . 3 . . 3 Propulsion 7 | . . . 2 2 . . 3 Utility 7 | . . . 2 2 . . 3 Weapon 7 | . . 1 1 1 . . 4 Highest Loss Streak 12 | . . 1 2 2 . . 12 To Critical Strikes . | . . . . . . . . Average Slot Usage (%) 94 | . 95 99 86 97 92 99 77 Engine 10 | . 9 9 14 9 7 14 7 Core 2 | . 4 1 . 3 . . . Treads 4 | . . . . 10 23 23 20 Leg 16 | . 28 21 15 11 . . . Device 8 | . 8 2 2 19 19 15 14 Storage 1 | . 6 . 2 . . . 3 Processor 17 | . 8 22 18 18 15 15 13 Protection 4 | . . 8 7 . . . . Energy Gun 3 | . 11 4 3 1 . . . Energy Cannon 5 | . . . 4 13 15 15 9 Ballistic Gun 11 | . 14 20 10 4 . . . Ballistic Cannon 1 | . . . . 2 7 7 3 Launcher 4 | . . 7 8 . . . . Naked Turns . | . . . . . . . . Heaviest Build 48 | 11 14 25 43 48 36 45 48 Greatest Support 66 | 20 20 20 25 66 62 62 62 Greatest Overweight (x) 4 | . . 1 3 1 . . 4 Average Overweight (x) . | . . . 1 . . . . Largest Inventory Capacity 10 | 8 8 5 10 10 5 5 10 Average Capacity 5 | 7 6 5 6 5 5 5 7 Most Carried 10 | 4 5 5 10 9 5 5 6 Average Carried 4 | 1 3 4 4 4 4 5 4 Final Capacity 10 | 8 5 5 10 5 5 5 10 Final Carried 9 | 2 5 4 9 4 5 5 6 Class Distribution -------------------- 47% | Scavenger-Gunner 22% | Gunner 16% | Mutant 3% | Hacker-Gunner 3% | Tank Dominant Class ---------------- Mutant | -10/Materials Scavenger-Gunner | -9/Materials Scavenger-Gunner | -8/Materials Scavenger-Gunner | -7/Factory Hacker-Gunner | -7/Garrison Hacker-Gunner | -7/Factory Mutant | -7/DSF Resources | -11 -10 -9 -8 -7 -7 -7 -7 ----------- Run | Yrd Mat Mat Mat Fac Gar Fac DSF Matter Collected 3077 | 206 343 672 879 811 118 . 48 Remotely . | . . . . . . . . Salvage Created 5377 | . 347 993 1399 2320 122 . 196 Parts 304 | . 17 82 66 117 11 . 11 Haulers Intercepted 3 | . . 1 1 1 . . . Recyclers Shooed 6 | . 1 2 1 2 . . . Parts Field Recycled 7 | . . 7 . . . . . Retrieved Matter 22 | . . 22 . . . . . Parts Self-Destructed . | . . . . . . . . Prevented . | . . . . . . . . Kills | -11 -10 -9 -8 -7 -7 -7 -7 ------- Run | Yrd Mat Mat Mat Fac Gar Fac DSF Combat Hostiles Destroyed 104 | . 7 28 29 35 2 . 3 Melee 1 | . 1 . . . . . . Guns 41 | . 6 17 10 8 . . . Cannons 36 | . . . 8 23 2 . 3 AOE 24 | . . 11 11 2 . . . Classes Destroyed 14 | . 2 7 3 1 1 . . Worker 10 | . . 2 3 5 . . . Builder 11 | . . 1 3 7 . . . Hauler 3 | . . 1 1 1 . . . Recycler 10 | . . . 4 6 . . . Mechanic 2 | . . . 1 1 . . . Operator 4 | . . 1 . 3 . . . Watcher 16 | . 2 5 4 5 . . . Swarmer 13 | . . 7 6 . . . . Grunt 65 | . 7 13 20 25 . . . Duelist 1 | . . 1 . . . . . Sentry 15 | . . 7 2 5 . . 1 Specialist 4 | . . . . . 2 . 2 Hunter 1 | . . . 1 . . . . Programmer 5 | . . . . 5 . . . Best Kill Streak 14 | . 2 9 7 14 2 . 2 Combat Bots Only 7 | . 2 7 6 7 2 . 2 Max Kills in Single Turn 4 | . 1 4 2 4 1 . 1 Gunslinging . | . . . . . . . . Exploded 3 | . . 3 2 1 . . . Melee 1 | . 1 . . . . . . Uniques/NPCs Destroyed . | . . . . . . . . Combat | -11 -10 -9 -8 -7 -7 -7 -7 -------- Run | Yrd Mat Mat Mat Fac Gar Fac DSF Hostile Shots Fired 698 | . 41 84 115 311 8 . 139 Missed 232 | . 15 27 33 120 3 . 34 Damage Taken 5901 | . 297 655 1007 2134 55 . 1753 Core 931 | . 73 55 96 280 21 . 406 Absorbed by Shields . | . . . . . . . . Ignored by Resistances 1711 | . 86 194 284 627 29 . 491 Regen/Repaired (Parts) 114 | . 64 24 . 26 . . . Core Remaining (%) 84 | 100 70 86 82 . . . . Volleys Fired 309 | . 23 68 85 116 4 . 13 Largest 3 | . 2 3 3 3 2 . 3 Hottest 158 | . 70 100 153 158 95 . 143 Shots Fired 701 | . 38 150 163 319 8 . 23 Gun 362 | . 38 133 103 87 . . 1 Cannon 297 | . . . 36 231 8 . 22 Launcher 41 | . . 17 24 . . . . Special 1 | . . . . 1 . . . Kinetic 315 | . 23 105 85 98 . . 4 Thermal 344 | . 15 28 54 220 8 . 19 Explosive 41 | . . 17 24 . . . . Electromagnetic . | . . . . . . . . Robot Hit Streak 40 | . 13 20 21 40 6 . 16 Robot Miss Streak 5 | . 2 5 3 5 . . 1 Penetration Max . | . . . . . . . . Secondary Targets . | . . . . . . . . Shots Hit Robots 463 | . 38 76 116 213 3 . 17 Core Hits 281 | . 17 61 92 103 2 . 6 Critical Kills 4 | . . . 1 3 . . . Critical Parts Destroyed 1 | . . 1 . . . . . Critical Strikes 14 | . 2 4 2 6 . . . Burn 6 | . 2 3 1 . . . . Meltdown 4 | . . . 1 3 . . . Destroy 1 | . . 1 . . . . . Blast 3 | . . . . 3 . . . Melee Attacks 9 | . 9 . . . . . . Impact 9 | . 9 . . . . . . Slashing . | . . . . . . . . Piercing . | . . . . . . . . Sneak Attacks . | . . . . . . . . Combat Hostiles . | . . . . . . . . Follow-up Attacks . | . . . . . . . . Damage Inflicted 14824 | . 636 2465 3907 7286 81 . 449 Guns 3839 | . 376 1273 1310 866 . . 14 Cannons 5435 | . . . 667 4252 81 . 435 Explosions 5275 | . . 1192 1922 2161 . . . Melee 260 | . 260 . . . . . . Ramming 15 | . . . 8 7 . . . Kinetic 3796 | . 239 1098 1067 1337 . . 55 Thermal 5664 | . 137 277 994 3781 81 . 394 Explosive 5089 | . . 1090 1838 2161 . . . Electromagnetic . | . . . . . . . . Impact 260 | . 260 . . . . . . Slashing . | . . . . . . . . Piercing . | . . . . . . . . Highest Corruption 2 | . 1 2 . 1 2 2 2 Average Corruption 1 | . 1 1 . 1 1 2 2 Corruption Purged . | . . . . . . . . Corruption Blocked . | . . . . . . . . Effects 12 | . 1 1 . 6 . 2 2 Message Errors 4 | . . . . 3 . . 1 Matter Fused 2 | . . . . . . 2 . Heat Flow Errors 2 | . . . . 1 . . 1 Energy Discharges 1 | . . 1 . . . . . Data Loss (minor) 2 | . . . . 2 . . . Data Loss (major) 1 | . 1 . . . . . . Overload Shots . | . . . . . . . . Overflow Damage 677 | . 21 111 96 440 . . 9 Projectiles 181 | . . . 21 151 . . 9 Explosions 475 | . . 111 75 289 . . . Melee 21 | . 21 . . . . . . Knockbacks 7 | . . . . 7 . . . Impact . | . . . . . . . . Kinetic 7 | . . . . 7 . . . Secondary . | . . . . . . . . Self-Inflicted Damage 134 | . . 90 44 . . . . Shots 6 | . . 4 2 . . . . Rammed 1 | . . . . 1 . . . Targets Rammed 3 | . . . 1 2 . . . Kicked 2 | . . . 1 1 . . . Crushed . | . . . . . . . . Highest Temperature 350 | . 63 302 350 237 33 . 122 Average Temperature 82 | . 28 66 109 75 16 . 62 Received Heat Transfer 2745 | . 204 303 738 1482 18 . . Effects 7 | . . 1 4 2 . . . Shutdowns 1 | . . . 1 . . . . Energy Bleed 3 | . . 1 . 2 . . . Interference 2 | . . . 2 . . . . Short Circuit 1 | . . . 1 . . . . Siege Activations . | . . . . . . . . Robots Corrupted . | . . . . . . . . Combat Hostiles . | . . . . . . . . Parts Fried . | . . . . . . . . Impact Corruptions 1 | . 1 . . . . . . Robots Melted 4 | . . . 1 3 . . . Combat Hostiles 2 | . . . . 2 . . . Parts Melted 22 | . . 3 1 18 . . . Heat Transferred 9928 | . 543 840 1715 6164 111 . 555 Parts Sabotaged . | . . . . . . . . Parts Stolen . | . . . . . . . . Parts Stripped . | . . . . . . . . Power Chain Reactions . | . . . . . . . . Alert | -11 -10 -9 -8 -7 -7 -7 -7 ------- Run | Yrd Mat Mat Mat Fac Gar Fac DSF Peak Influence 724 | . 192 574 640 724 510 235 189 Initial 446 | . . 69 145 156 446 232 144 Average 287 | . 76 264 420 350 484 232 147 Maximum Alert Level 3 | . . 2 2 3 2 1 . Low Security (%) 40 | 100 100 44 9 24 . . 100 Level 1 23 | . . 28 15 40 . 100 . Level 2 34 | . . 27 74 30 100 . . Level 3 1 | . . . . 4 . . . Level 4 . | . . . . . . . . Level 5 . | . . . . . . . . High Security . | . . . . . . . . Max Security . | . . . . . . . . Squads Dispatched 23 | . 1 3 4 13 . . 2 Investigation 12 | . 1 1 3 7 . . . Extermination 2 | . . . . 2 . . . Reinforcement 6 | . . 2 1 1 . . 2 Assault . | . . . . . . . . Garrison 3 | . . . . 3 . . . Intercept . | . . . . . . . . Searches Triggered . | . . . . . . . . Construction Impeded . | . . . . . . . . Haulers Reinforced 1 | . . . . 1 . . . Active Scanning Responses . | . . . . . . . . Cargo Convoy Interrupts . | . . . . . . . . Stealth | -11 -10 -9 -8 -7 -7 -7 -7 --------- Run | Yrd Mat Mat Mat Fac Gar Fac DSF Distress Signals 4 | . 1 2 1 . . . . Communications Jammed . | . . . . . . . . Distress Signals . | . . . . . . . . Times Spotted 150 | . 9 36 42 50 3 . 10 Peak Tracking Total 8 | . 2 4 5 8 2 . 6 Tactical Retreats 8 | . . . 1 5 . . 2 Traps | -11 -10 -9 -8 -7 -7 -7 -7 ------- Run | Yrd Mat Mat Mat Fac Gar Fac DSF Traps Triggered 8 | . 1 2 3 2 . . . Indirectly . | . . . . . . . . Trap Hack Attempts . | . . . . . . . . Triggered . | . . . . . . . . Disarmed . | . . . . . . . . Reprogrammed 1 | . 1 . . . . . . Reused . | . . . . . . . . Traps Extracted . | . . . . . . . . Installed . | . . . . . . . . Triggered . | . . . . . . . . Machines | -11 -10 -9 -8 -7 -7 -7 -7 ---------- Run | Yrd Mat Mat Mat Fac Gar Fac DSF Machines Disabled 27 | . . 3 3 20 1 . . Max in Single Turn 6 | . . 1 2 6 1 . . Machines Repaired . | . . . . . . . . Machines Dismantled . | . . . . . . . . Machines Sabotaged . | . . . . . . . . Overloaded Fab Kills . | . . . . . . . . Hacking | -11 -10 -9 -8 -7 -7 -7 -7 --------- Run | Yrd Mat Mat Mat Fac Gar Fac DSF Machines Accessed 26 | . 6 8 3 8 . 1 . Terminals 19 | . 5 6 3 4 . 1 . Fabricators 1 | . . . . 1 . . . Repair Stations 3 | . 1 1 . 1 . . . Recycling Units 1 | . . 1 . . . . . Scanalyzers . | . . . . . . . . Garrison Access 2 | . . . . 2 . . . Total Hacks 85 | . 27 30 7 20 . 1 . Successful 53 | . 16 23 3 10 . 1 . Failed 32 | . 11 7 4 10 . . . Catastrophic 4 | . 1 2 . 1 . . . Database Lockouts . | . . . . . . . . Manual . | . . . . . . . . Terminals 54 | . 24 15 7 7 . 1 . Fabricators 3 | . . . . 3 . . . Repair Stations 10 | . 3 2 . 5 . . . Recycling Units 13 | . . 13 . . . . . Scanalyzers . | . . . . . . . . Garrison Access 5 | . . . . 5 . . . Terminal Hacks 29 | . 14 8 3 3 . 1 . Record 1 | . 1 . . . . . . Part Schematic 1 | . . . . 1 . . . Prototype ID Bank 6 | . 2 4 . . . . . Open DSF 2 | . . . . 1 . 1 . Level Access Points 1 | . . . 1 . . . . Emergency Access Points 3 | . . 2 1 . . . . Recycling Unit Index 1 | . 1 . . . . . . Locate Traps 3 | . 2 . . 1 . . . Reprogram Traps 1 | . 1 . . . . . . Dispatch Records 1 | . 1 . . . . . . Patrol Status 1 | . . 1 . . . . . Investigation Status 1 | . 1 . . . . . . Reinforcement Status 1 | . 1 . . . . . . Recall Investigation 1 | . 1 . . . . . . Registered Prototypes 1 | . 1 . . . . . . Zone Layout 4 | . 2 1 1 . . . . Fabricator Hacks 3 | . . . . 3 . . . Network Status 1 | . . . . 1 . . . Load Schematic 1 | . . . . 1 . . . Build 1 | . . . . 1 . . . Repair Station Hacks 7 | . 2 2 . 3 . . . Scan Component 4 | . 1 1 . 2 . . . Repair 3 | . 1 1 . 1 . . . Recycling Unit Hacks 13 | . . 13 . . . . . Recycle Component 3 | . . 3 . . . . . Process 6 | . . 6 . . . . . Report Inventory 1 | . . 1 . . . . . Retrieve Matter 2 | . . 2 . . . . . Retrieve Components 1 | . . 1 . . . . . Scanalyzer . | . . . . . . . . Garrison Access Hacks 1 | . . . . 1 . . . Unlock Access 1 | . . . . 1 . . . Unauthorized Hacks . | . . . . . . . . Terminals . | . . . . . . . . Fabricators . | . . . . . . . . Repair Stations . | . . . . . . . . Recycling Units . | . . . . . . . . Scanalyzers . | . . . . . . . . Garrison Access . | . . . . . . . . Data Cores Recovered 1 | . . . . 1 . . . Used . | . . . . . . . . Hacking Detections 21 | . 5 7 2 7 . . . Full Trace Events 10 | . 2 3 1 4 . . . Feedback Events 1 | . 1 . . . . . . Corruption 1 | . 1 . . . . . . Feedback Blocked . | . . . . . . . . Robot Schematics Acquired . | . . . . . . . . Robots Built . | . . . . . . . . Authchips . | . . . . . . . . Time . | . . . . . . . . Total Robot Build Rating . | . . . . . . . . Part Schematics Acquired 1 | . . . . 1 . . . Parts Built 2 | . . . . 2 . . . Authchips . | . . . . . . . . Time 106 | . . . . 106 . . . Total Part Build Rating 12 | . . . . 12 . . . Parts Repaired 3 | . 1 1 . 1 . . . Time 64 | . 13 32 . 19 . . . Parts Recycled 3 | . . 3 . . . . . Recycled Matter 14 | . . 14 . . . . . Retrieved Matter . | . . . . . . . . Retrieved Components 3 | . . 3 . . . . . Parts Scanalyzed . | . . . . . . . . Part Schematics Acquired . | . . . . . . . . Parts Damaged . | . . . . . . . . Bothacking | -11 -10 -9 -8 -7 -7 -7 -7 ------------ Run | Yrd Mat Mat Mat Fac Gar Fac DSF Used RIF Installer . | . . . . . . . . Robots Hacked 1 | . . . . 1 . . . Non-combat 1 | . . . . 1 . . . Combat . | . . . . . . . . Robot Hacks Applied 1 | . . . . 1 . . . parse_system 1 | . . . . 1 . . . Relay Couplers Released 3 | . . . . 3 . . . Programmers 3 | . . . . 3 . . . Fabnet Peak Effective % . | . . . . . . . . Robots Rewired . | . . . . . . . . Allies Hacked . | . . . . . . . . Hacks Repelled . | . . . . . . . . Allies | -11 -10 -9 -8 -7 -7 -7 -7 -------- Run | Yrd Mat Mat Mat Fac Gar Fac DSF Total Allies . | . . . . . . . . Largest Group . | . . . . . . . . Highest-Rated Group . | . . . . . . . . Highest-Rated Ally . | . . . . . . . . Total Orders . | . . . . . . . . Ally Attacks . | . . . . . . . . Total Damage . | . . . . . . . . Kills . | . . . . . . . . Allies Corrupted . | . . . . . . . . Allies Melted . | . . . . . . . . Intel | -11 -10 -9 -8 -7 -7 -7 -7 ------- Run | Yrd Mat Mat Mat Fac Gar Fac DSF Robot Analysis Total . | . . . . . . . . Derelict Logs Recovered . | . . . . . . . . Drone Launches . | . . . . . . . . Drone Recoveries . | . . . . . . . . Exploration | -11 -10 -9 -8 -7 -7 -7 -7 ------------- Run | Yrd Mat Mat Mat Fac Gar Fac DSF Turns Passed 7059 | 490 694 1788 1685 1990 82 110 220 Spaces Moved 3704 | 161 470 1142 645 1084 41 67 94 Core 15 | 13 . . . . . . 2 Treads 695 | . . . . 495 41 67 92 Legs 2993 | 148 470 1142 644 589 . . . Wheels . | . . . . . . . . Hover 1 | . . . 1 . . . . Flight . | . . . . . . . . Fastest Speed 50 | 50 120 120 120 120 161 161 157 Average Speed 140 | 114 120 125 190 137 161 161 162 Slowest Speed 260 | 120 120 190 260 240 161 161 250 Overloaded Moves . | . . . . . . . . Propulsion Burnouts . | . . . . . . . . Robots Hopped . | . . . . . . . . Cave-ins Triggered . | . . . . . . . . Exploration Rate (%) 35 | 16 70 69 46 24 7 1 51 Regions Visited 7 Branch Regions . Pre-discovered Areas . | . . . . . . . . Known Exits Taken 5 | . 1 1 1 1 . 1 . Unknown Exits Taken 1 | 1 . . . . . . . Scrap Searched . | . . . . . . . . Spaces Dug 8 | . . 7 . 1 . . . Terrain Destroyed 404 | . . 163 208 33 . . . Melee . | . . . . . . . . Projectile 16 | . . . 2 14 . . . AOE 388 | . . 163 206 19 . . . Terrain Rammed . | . . . . . . . . Walls Destroyed . | . . . . . . . . Machines Disabled . | . . . . . . . . Actions | -11 -10 -9 -8 -7 -7 -7 -7 --------- Run | Yrd Mat Mat Mat Fac Gar Fac DSF Total 4987 | 467 547 1378 952 1381 51 68 143 Wait 642 | 293 11 111 141 64 . . 22 Move 3697 | 160 469 1141 644 1083 40 66 94 Hop . | . . . . . . . . Pick Up 106 | 8 14 20 29 26 3 . 6 Fast Attach 15 | . . . . 11 . 1 3 Attach 52 | 6 4 10 15 11 1 . 5 Detach 8 | . 1 2 4 1 . . . Swap 65 | . 8 11 16 28 1 1 . Drop 81 | . 8 15 17 39 2 . . Fire 309 | . 23 68 85 116 4 . 13 Melee 9 | . 9 . . . . . . Ram . | . . . . . . . . Kick 2 | . . . 1 1 . . . Crush 1 | . . . . 1 . . . Escape Stasis . | . . . . . . . . Rewire . | . . . . . . . . Trap . | . . . . . . . . Miscellaneous . | . . . . . . . . Route ------- -11/Scrapyard -10/Materials (discovered 2 exits: *Mat / [*Min]) -9/Materials -8/Materials (discovered 3 exits: *Fac x3) -7/Factory (discovered 3 exits: [*Fac x2] / Gar) -7/Garrison -7/Factory -7/DSF History --------- Turn | Location | Event 3 | -11/Scrapyard | Discovered new exit (range 16) 491 | -11/Scrapyard | Entered Materials 492 | -10/Materials | Build established: Mutant 612 | -10/Materials | Discovered new exit (range 15) 822 | -10/Materials | Discovered new exit (range 3) 1051 | -10/Materials | Repaired Aluminum Leg? 1183 | -10/Materials | Identified exit to Materials 1185 | -10/Materials | Entered another Materials area 1185 | -9/Materials | Evolved 2 slots: Utility x1, Weapon x1 1736 | -9/Materials | Build established: Scavenger-Gunner 2354 | -9/Materials | Destroyed 7 combat bots 2462 | -9/Materials | Repaired Imp. Ion Engine 2690 | -9/Materials | Discovered new exit (range 12) 2908 | -9/Materials | Build established: Gunner 2952 | -9/Materials | Identified exit to Materials 2973 | -9/Materials | Entered another Materials area 2973 | -8/Materials | Evolved 2 slots: Power x1, Utility x1 3579 | -8/Materials | Identified exit to Factory 4434 | -8/Materials | Build established: Scavenger-Gunner 4658 | -8/Materials | Entered Factory 4658 | -7/Factory | Evolved 2 slots: Propulsion x1, Utility x1 4869 | -7/Factory | Repaired Imp. Heat Sink 5337 | -7/Factory | Fabricated Imp. Focal Shield? 5642 | -7/Factory | Destroyed 7 combat bots 5924 | -7/Factory | Discovered new exit (range 13) 6144 | -7/Factory | Discovered new exit (range 7) 6485 | -7/Factory | Build established: Gunner 6598 | -7/Factory | Identified exit to Garrison 6648 | -7/Factory | Entered Garrison 6678 | -7/Garrison | Triggered checkpoint 6718 | -7/Garrison | Discovered new exit (range 6) 6728 | -7/Garrison | Identified exit to Factory 6730 | -7/Garrison | Entered Factory 6828 | -7/Factory | Identified exit to DSF 6840 | -7/Factory | Entered DSF 6885 | -7/DSF | Additional patrols routed to DSF 6981 | -7/DSF | Core integrity fell below 50% 7053 | -7/DSF | Core integrity fell below 20% 7060 | -7/DSF | Destroyed by S-27 Virus with Autogun Last Messages --------------- 07003_ System corrupted: Heat flow error (+190). 07012_ Penetrated by Slug. 07018_ Hvy. Ion Cannon destroyed. 07024_ Slug penetrates Wall. 07025_ Acquired Particle Gun. 07027_ Slug penetrates Wall. 07028_ Acquired Particle Gun. 07036_ Arm. Treads destroyed. 07039_ Penetrated by Slug. 07043_ Acquired Imp. Light Armor Plating. 07049_ Adv. Treads destroyed. 07049_ Slug penetrates Wall. 07052_ C-30 ARC bursts open, deploying its payload. 07052_ S-27 Virus unfolds itself. 07054_ Arm. Treads destroyed. 07057_ Slug penetrates Wall. [Achievement: First Step to Greatness] [Achievement: 5k Club] [Achievement: 10k Club] Map ----- +----------------------------------------------------+ | ????????????????????????????????????????????????? | | ????????????????????????????????????????????????? | | ????????????????????????????????????????????????? | | ????????????????????????????????????????????????? | | ????????????????????????????????????????????????? | | ????????????????????????????????????????????????? | | ????????????????????????????????????????????????? | | ????????????????????????????????????????????????? | | ????????????????????????????????????????????????? | | ????????????????????????????????????????????????? | | ?????????????????????# #??????????????????????? | | ?????????????????????= !??????????????????????? | | ?????????????????????= !??????????????????????? | | ?????????????????????= !??????????????????????? | | ?????######??#######?# #??????????????????????? | | ?????# #?[[[#!!!### "##?????????????????????? | | ?????# ##[[[#!!!##a %"##????????????????????? | | ???### ss ????????????????????? | | ???# " % ^ s% ?????????????????????? | | ???# "% % ! ^^ % ?????????????????????? | | ???# # ## #]]]#? ??????????????????????? | | ?????# #? #?????# #??????????????????????? | | ?????### ##"#?????###a ###????????????????????? | | ??????# !#??????#!! ]]#????????????????????? | | ??????# %!!#??????#!! ]]#????????????????????? | | ??????# !#??????#!! @]#????????????????????? | | ??????## "##??????### ###????????????????????? | | ??????#! #??????# %**#????????????????????? | | ??????#! #??????# ^^**#????????????????????? | | ??????## ##"####### **#????????????????????? | | ?????### ###!!#!!!### ###????????????????????? | | ???###""% ##!!#!!!###H% "##????????????????????? | | ???""""" !!%= !h % #????????????????????? | | ???"##"" *! [ #????????????????????? | | ?????#"""""##!!#!!!" [!!![[#????????????????????? | | ?????#"""""######### [!!![[#????????????????????? | | ?????####"##???????#####"###????????????????????? | | ????????#"#?????????????##??????????????????????? | | ????????""#?????????????????????????????????????? | | ????????##??????????????????????????????????????? | | ????????????????????????????????????????????????? | | ????????????????????????????????????????????????? | | ????????????????????????????????????????????????? | | ????????????????????????????????????????????????? | | | | | | | | | | | | | +----------------------------------------------------+ Best States ------------- Heat Dissipation 88 Energy Generation 27 Energy Capacity 480 Matter Stores 300 Matter Capacity 400 Sight Range 18 Robot Scan Range 14 Terrain Scan Range 14 Terrain Scan Density 10 Armor Coverage 300 Resistance: KI 45 Resistance: TH 20 Resistance: EX 20 Resistance: EM 20 Resistance: I 20 Resistance: S 20 Resistance: P 20 Weapon Cycling 15 Evasion (%) 55 Targeting Accuracy 5 Armor Integrity Analysis 30 Recoil Reduction 3 Energy Filtering 30 Particle Charging 15 Offensive Hacking 20 Authchip Count 1 Item Schematics ----------------- Imp. Focal Shield | -7/Factory | Hacked Robot Schematics ------------------ None Fabricated ------------ Imp. Focal Shield | x2 | -7/Factory Alien Tech Used ----------------- None Achievements -------------- 10k Club 5k Club First Step to Greatness Hey, That's Mine! It's Just You Just What I Needed Made in Tau Ceti IV More Dakka Please Part-time Mechanic Remodeling Storm Trooper Challenges ------------ None Game ------ Seed AutogunStormRail Manual? 0 Play Time 02:13:11 Cumulative 3.2 hours Start 2024.04.05 @ 21:42:03 End 2024.04.06 @ 14:47:50 Sessions 3 Manual Loads 0 Difficulty Adventurer Special Mode None Game No. 2 Rogue 0 Adventurer 2 Explorer 0 Win Type - Total 0 Types 0/0/0/0/0/0/0/0/0 Lore% 1 Gallery% 7 Achievement% 7 Wizard Run 0 Options --------- Layout 1 ASCII 0 Keyboard 0 Movement Mouse Keybinds 0 Fullscreen 1 Font 16/X11Tight Map View 50x38 Zoom Use 0% Tactical HUD 1 Map Filters NONE Filters NONE Steam X RUN: ea23f3ab-5ef6-483a-ba0f-c2425242c70f